fUST/lending_fUST_20241231
["ID","MTS","AMOUNT","RATE_DAILY","PERIOD"]
[347278459,1735653055520,-610.36,0.00019452,3]
[347278460,1735653055529,-155.812774,0.00019452,2]
[347278461,1735653055539,-500.0,0.00019452,3]
[347278462,1735653055549,-196.645405,0.00019452,2]
[347278463,1735653055559,-196.645405,0.00019452,2]
[347278464,1735653055568,-151.0,0.00019452,2]
[347278465,1735653055578,-500.0,0.00019452,3]
[347278466,1735653055588,-181.799201,0.00019452,2]
[347278467,1735653055600,-500.0,0.00019452,3]
[347278468,1735653055609,-500.0,0.00019452,3]
[347278469,1735653055620,-196.645405,0.00019452,2]
[347278470,1735653055630,-196.645405,0.00019452,2]
[347278471,1735653055640,-500.0,0.00019452,3]
[347278472,1735653055650,-151.0,0.00019452,2]
[347278473,1735653055660,-151.355115,0.00019452,2]
[347278474,1735653055670,-252.6587528,0.00019452,3]
[347278475,1735653055679,-500.0,0.00019452,3]
[347278476,1735653055689,-151.0,0.00019452,2]
[347278477,1735653055699,-151.0,0.00019452,2]
[347278478,1735653055709,-500.0,0.00019452,3]
[347278479,1735653055719,-500.0,0.00019452,3]
[347278480,1735653055728,-500.0,0.00019452,3]
[347278481,1735653055738,-500.0,0.00019452,3]
[347278482,1735653055747,-500.0,0.00019452,3]
[347278483,1735653055760,-500.0,0.00019452,3]
[347278484,1735653055770,-646.07,0.00019452,3]
[347278485,1735653055779,-500.0,0.00019452,3]
[347278486,1735653055789,-500.0,0.00019452,3]
[347278487,1735653055799,-151.0,0.00019452,2]
[347278488,1735653055808,-151.0,0.00019452,2]
[347278489,1735653055818,-500.0,0.00019452,3]
[347278490,1735653055828,-543.82759754,0.00019452,3]
[347278491,1735653055837,-167.594098,0.00019452,2]
[347278492,1735653055847,-167.594098,0.00019452,2]
[347278493,1735653055857,-500.0,0.00019452,3]
[347278494,1735653055868,-500.0,0.00019452,3]
[347278495,1735653055877,-167.594098,0.00019452,2]
[347278496,1735653055886,-167.594098,0.00019452,2]
[347278497,1735653055896,-500.0,0.00019452,3]
[347278498,1735653055905,-500.0,0.00019452,3]
[347278499,1735653055916,-500.0,0.00019452,3]
[347278500,1735653055925,-1283.31,0.00019452,3]
[347278501,1735653055935,-500.0,0.00019452,3]
[347278502,1735653055945,-500.0,0.00019452,3]
[347278503,1735653055955,-158.198186,0.00019452,2]
[347278504,1735653055964,-151.0,0.00019452,2]
[347278505,1735653055973,-151.0,0.00019452,2]
[347278506,1735653055983,-500.0,0.00019452,3]
[347278507,1735653055992,-500.0,0.00019452,3]
[347278508,1735653056001,-500.0,0.00019452,3]
[347278509,1735653056011,-500.0,0.00019452,3]
[347278510,1735653056021,-689.37,0.00019452,3]
[347278511,1735653056030,-500.0,0.00019452,3]
[347278512,1735653056040,-500.0,0.00019452,3]
[347278513,1735653056049,-500.0,0.00019452,3]
[347278514,1735653056058,-500.0,0.00019452,2]
[347278515,1735653056068,-500.0,0.00019452,3]
[347278516,1735653056078,-500.0,0.00019452,3]
[347278517,1735653056087,-416.14513175,0.00019452,3]
[347278518,1735653056096,-500.0,0.00019452,3]
[347278519,1735653056106,-500.0,0.00019452,3]
[347278520,1735653056116,-500.0,0.00019452,3]
[347278521,1735653056125,-500.0,0.00019452,3]
[347278522,1735653056136,-500.0,0.00019452,3]
[347278523,1735653056146,-500.0,0.00019452,3]
[347278524,1735653056156,-500.0,0.00019452,3]
[347278525,1735653056165,-500.0,0.00019452,3]
[347278526,1735653056175,-916.14,0.00019452,3]
[347278527,1735653056184,-504.61487717,0.00019452,3]
[347278528,1735653056194,-500.0,0.00019452,3]
[347278529,1735653056203,-500.0,0.00019452,3]
[347278530,1735653056212,-500.0,0.00019452,3]
[347278531,1735653056222,-502.27282401,0.00019452,3]
[347278532,1735653056232,-500.0,0.00019452,3]
[347278533,1735653056241,-502.77429682,0.00019452,3]
[347278534,1735653056251,-500.0,0.00019452,3]
[347278535,1735653056260,-500.0,0.00019452,3]
[347278536,1735653056269,-500.0,0.00019452,3]
[347278537,1735653056278,-500.0,0.00019452,3]
[347278538,1735653056288,-500.0,0.00019452,3]
[347278539,1735653056298,-1248.19,0.00019452,3]
[347278540,1735653056307,-500.0,0.00019452,3]
[347278541,1735653056316,-500.0,0.00019452,3]
[347278542,1735653056325,-500.0,0.00019452,3]
[347278543,1735653056334,-500.0,0.00019452,3]
[347278544,1735653056344,-500.0,0.00019452,3]
[347278545,1735653056353,-500.0,0.00019452,3]
[347278546,1735653056363,-203.003452,0.00019452,2]
[347278547,1735653056373,-203.003452,0.00019452,2]
[347278548,1735653056382,-500.0,0.00019452,3]
[347278549,1735653056391,-151.0,0.00019452,2]
[347278550,1735653056453,-500.0,0.00019452,3]
[347278551,1735653056463,-203.003452,0.00019452,2]
[347278552,1735653056472,-203.003452,0.00019452,2]
[347278553,1735653056481,-500.0,0.00019452,3]
[347278554,1735653056490,-500.0,0.00019452,3]
[347278555,1735653056499,-151.0,0.00019452,2]
[347278556,1735653056509,-8166.99,0.00019452,3]
[347278557,1735653056518,-151.0,0.00019452,2]
[347278558,1735653056527,-500.0,0.00019452,3]
[347278559,1735653056537,-500.0,0.00019452,3]
[347278560,1735653056546,-289.697147,0.00019452,2]
[347278561,1735653056555,-289.697147,0.00019452,2]
[347278562,1735653056565,-289.697147,0.00019452,2]
[347278563,1735653056574,-289.697147,0.00019452,2]
[347278564,1735653056584,-500.0,0.00019452,3]
[347278565,1735653056593,-500.0,0.00019452,3]
[347278566,1735653056603,-5713.49,0.00019452,3]
[347278567,1735653056612,-500.0,0.00019452,3]
[347278568,1735653056623,-151.0,0.00019452,2]
[347278569,1735653056633,-151.0,0.00019452,2]
[347278570,1735653056643,-500.0,0.00019452,3]
[347278571,1735653056652,-500.0,0.00019452,3]
[347278572,1735653056661,-500.0,0.00019452,3]
[347278573,1735653056671,-500.0,0.00019452,3]
[347278574,1735653056680,-500.0,0.00019452,3]
[347278575,1735653056690,-659.85,0.00019452,3]
[347278576,1735653056699,-500.0,0.00019452,3]
[347278577,1735653056708,-500.0,0.00019452,3]
[347278578,1735653056718,-500.0,0.00019452,3]
[347278579,1735653056728,-500.0,0.00019452,3]
[347278580,1735653056737,-500.0,0.00019452,3]
[347278581,1735653056746,-3520.59,0.00019452,3]
[347278582,1735653056760,-500.0,0.00019452,3]
[347278583,1735653056770,-500.0,0.00019452,3]
[347278584,1735653056779,-500.0,0.00019452,3]
[347278585,1735653056789,-212.871907,0.00019452,2]
[347278586,1735653056799,-212.871907,0.00019452,2]
[347278587,1735653056809,-500.0,0.00019452,3]
[347278588,1735653056819,-212.871907,0.00019452,2]
[347278589,1735653056828,-212.871907,0.00019452,2]
[347278590,1735653056840,-723.66,0.00019452,3]
[347278591,1735653056850,-500.0,0.00019452,3]
[347278592,1735653056859,-500.0,0.00019452,3]
[347278593,1735653056876,-500.0,0.00019452,3]
[347278594,1735653056893,-500.0,0.00019452,3]
[347278595,1735653056911,-500.0,0.00019452,3]
[347278596,1735653056929,-511.98,0.00019452,3]
[347278597,1735653056949,-503.60880248,0.00019452,3]
[347278598,1735653056966,-500.0,0.00019452,3]
[347278599,1735653056985,-857.96,0.00019452,3]
[347278600,1735653057000,-501.03313542,0.00019452,3]
[347278601,1735653057017,-500.0,0.00019452,3]
[347278602,1735653057036,-500.0,0.00019452,3]
[347278603,1735653057055,-500.0,0.00019452,3]
[347278604,1735653057068,-843.12,0.00019452,3]
[347278605,1735653057086,-283.16970756,0.00019452,2]
[347278606,1735653057101,-631.56,0.00019452,3]
[347278607,1735653057116,-500.0,0.00019452,3]
[347278608,1735653057131,-151.0,0.00019452,2]
[347278609,1735653057146,-151.0,0.00019452,2]
[347278610,1735653057161,-500.0,0.00019452,3]
[347278611,1735653057176,-500.0,0.00019452,3]
[347278612,1735653057190,-500.0,0.00019452,3]
[347278613,1735653057205,-500.0,0.00019452,3]
[347278614,1735653057220,-1492.71,0.00019452,3]
[347278615,1735653057234,-500.0,0.00019452,3]
[347278616,1735653057249,-500.0,0.00019452,3]
[347278617,1735653057262,-500.0,0.00019452,3]
[347278618,1735653057276,-500.0,0.00019452,3]
[347278619,1735653057291,-500.0,0.00019452,3]
[347278620,1735653057306,-515.72536417,0.00019452,3]
[347278621,1735653057321,-500.0,0.00019452,3]
[347278622,1735653057336,-500.0,0.00019452,3]
[347278623,1735653057351,-500.0,0.00019452,3]
[347278624,1735653057365,-1713.27,0.00019452,3]
[347278625,1735653057379,-500.0,0.00019452,3]
[347278626,1735653057399,-500.0,0.00019452,3]
[347278627,1735653057426,-500.0,0.00019452,3]
[347278628,1735653057453,-300.89387254,0.00019452,3]
[347278629,1735653057478,-500.0,0.00019452,3]
[347278630,1735653057504,-44053.33,0.00019452,3]
[347278631,1735653057532,-500.0,0.00019452,3]
[347278632,1735653057559,-500.0,0.00019452,3]
[347278633,1735653057582,-500.0,0.00019452,3]
[347278634,1735653057596,-504.55447812,0.00019452,3]
[347278635,1735653057682,-500.0,0.00019452,3]
[347278636,1735653057692,-1723.95,0.00019452,3]
[347278637,1735653057702,-513.09,0.00019452,3]
[347278638,1735653057711,-500.0,0.00019452,3]
[347278639,1735653057721,-500.0,0.00019452,3]
[347278640,1735653057730,-151.0,0.00019452,2]
[347278641,1735653057740,-151.0,0.00019452,2]
[347278642,1735653057749,-500.0,0.00019452,3]
[347278643,1735653057762,-1431.33,0.00019452,3]
[347278644,1735653057771,-500.0,0.00019452,3]
[347278645,1735653057781,-500.0,0.00019452,3]
[347278646,1735653057790,-500.0,0.00019452,3]
[347278647,1735653057800,-500.0,0.00019452,3]
[347278648,1735653057809,-882.91,0.00019452,3]
[347278649,1735653057819,-505.94234459,0.00019452,3]
[347278650,1735653057828,-500.0,0.00019452,3]
[347278651,1735653057837,-540.97084588,0.00019452,3]
[347278652,1735653057846,-500.0,0.00019452,3]
[347278653,1735653057856,-500.0,0.00019452,3]
[347278654,1735653057866,-733.69,0.00019452,3]
[347278655,1735653057877,-4666.48,0.00019452,3]
[347278656,1735653057886,-905.11,0.00019452,3]
[347278657,1735653057895,-500.0,0.00019452,3]
[347278658,1735653057904,-748.93,0.00019452,3]
[347278659,1735653057914,-500.0,0.00019452,3]
[347278660,1735653057923,-500.0,0.00019452,3]
[347278661,1735653057932,-500.0,0.00019452,3]
[347278662,1735653057941,-500.0,0.00019452,3]
[347278663,1735653057951,-500.0,0.00019452,3]
[347278664,1735653057960,-500.0,0.00019452,3]
[347278665,1735653057970,-1084.16,0.00019452,3]
[347278666,1735653057979,-918.61,0.00019452,3]
[347278667,1735653057989,-500.0,0.00019452,3]
[347278668,1735653057999,-617.23267291,0.00019452,3]
[347278669,1735653058009,-500.0,0.00019452,3]
[347278670,1735653058018,-223.0637277,0.00019452,3]
[347278671,1735653058027,-500.0,0.00019452,3]
[347278672,1735653058036,-280.12947206,0.00019452,3]
[347278673,1735653058045,-500.0,0.00019452,3]
[347278674,1735653058054,-500.0,0.00019452,3]
[347278675,1735653058064,-500.0,0.00019452,3]
[347278676,1735653058074,-500.0,0.00019452,3]
[347278677,1735653058083,-4490.46,0.00019452,3]
[347278678,1735653058093,-500.0,0.00019452,3]
[347278679,1735653058102,-500.0,0.00019452,3]
[347278680,1735653058112,-500.35700045,0.00019452,3]
[347278681,1735653058122,-500.0,0.00019452,3]
[347278682,1735653058131,-500.0,0.00019452,3]
[347278683,1735653058140,-500.0,0.00019452,3]
[347278684,1735653058149,-500.0,0.00019452,3]
[347278685,1735653058158,-272.49244687,0.00019452,3]
[347278686,1735653058167,-500.0,0.00019452,3]
[347278687,1735653058176,-500.0,0.00019452,3]
[347278688,1735653058185,-500.0,0.00019452,3]
[347278689,1735653058194,-516.94,0.00019452,3]
[347278690,1735653058203,-500.0,0.00019452,3]
[347278691,1735653058213,-500.0,0.00019452,3]
[347278692,1735653058221,-344.908686,0.00019452,2]
[347278693,1735653058230,-344.908686,0.00019452,2]
[347278694,1735653058240,-500.0,0.00019452,3]
[347278695,1735653058249,-500.0,0.00019452,3]
[347278696,1735653058259,-344.908686,0.00019452,2]
[347278697,1735653058268,-344.908686,0.00019452,2]
[347278698,1735653058277,-500.0,0.00019452,3]
[347278699,1735653058286,-500.0,0.00019452,3]
[347278700,1735653058295,-500.0,0.00019452,3]
[347278701,1735653058304,-500.0,0.00019452,3]
[347278702,1735653058313,-500.0,0.00019452,3]
[347278703,1735653058323,-500.0,0.00019452,3]
[347278704,1735653058333,-500.0,0.00019452,3]
[347278705,1735653058342,-626.12,0.00019452,3]
[347278706,1735653058351,-650.02,0.00019452,3]
[347278707,1735653058361,-500.0,0.00019452,3]
[347278708,1735653058370,-500.0,0.00019452,3]
[347278709,1735653058379,-500.0,0.00019452,3]
[347278710,1735653058389,-509.65,0.00019452,3]
[347278711,1735653058399,-500.0,0.00019452,3]
[347278712,1735653058409,-500.0,0.00019452,3]
[347278713,1735653058419,-500.0,0.00019452,3]
[347278714,1735653058429,-500.0,0.00019452,3]
[347278715,1735653058438,-151.0,0.00019452,2]
[347278716,1735653058449,-500.0,0.00019452,3]
[347278717,1735653058458,-151.0,0.00019452,2]
[347278718,1735653058468,-500.0,0.00019452,3]
[347278719,1735653058477,-500.0,0.00019452,3]
[347278720,1735653058486,-748.35,0.00019452,3]
[347278721,1735653058495,-151.0,0.00019452,2]
[347278722,1735653058505,-500.0,0.00019452,3]
[347278723,1735653058514,-279.305964,0.00019452,2]
[347278724,1735653058524,-739.89,0.00019452,3]
[347278725,1735653058533,-500.0,0.00019452,3]
[347278726,1735653058543,-500.0,0.00019452,3]
[347278727,1735653058552,-500.0,0.00019452,3]
[347278728,1735653058561,-1241.94,0.00019452,3]
[347278729,1735653058571,-500.0,0.00019452,3]
[347278730,1735653058580,-889.8,0.00019452,3]
[347278731,1735653058589,-500.0,0.00019452,3]
[347278732,1735653058598,-500.0,0.00019452,3]
[347278733,1735653058607,-500.0,0.00019452,3]
[347278734,1735653058618,-3187.22,0.00019452,3]
[347278735,1735653058627,-500.0,0.00019452,3]
[347278736,1735653058638,-500.0,0.00019452,3]
[347278737,1735653058648,-501.52316425,0.00019452,3]
[347278738,1735653058658,-500.0,0.00019452,3]
[347278739,1735653058667,-500.0,0.00019452,3]
[347278740,1735653058677,-500.0,0.00019452,3]
[347278741,1735653058687,-500.0,0.00019452,3]
[347278742,1735653058697,-500.0,0.00019452,3]
[347278743,1735653058706,-1108.36,0.00019452,3]
[347278744,1735653058715,-687.5,0.00019452,3]
[347278745,1735653058725,-500.0,0.00019452,3]
[347278746,1735653058734,-151.0,0.00019452,2]
[347278747,1735653058743,-151.0,0.00019452,2]
[347278748,1735653058753,-500.0,0.00019452,3]
[347278749,1735653058767,-1638.12,0.00019452,3]
[347278750,1735653058776,-500.0,0.00019452,3]
[347278751,1735653058786,-500.0,0.00019452,3]
[347278752,1735653058796,-627.82,0.00019452,3]
[347278753,1735653058808,-500.0,0.00019452,3]
[347278754,1735653058818,-500.0,0.00019452,3]
[347278755,1735653058827,-500.0,0.00019452,3]
[347278756,1735653058838,-1830.75,0.00019452,3]
[347278757,1735653058848,-500.0,0.00019452,3]
[347278758,1735653058857,-1627.18,0.00019452,3]
[347278759,1735653058869,-500.0,0.00019452,3]
[347278760,1735653058879,-500.0,0.00019452,3]
[347278761,1735653058903,-3980.7,0.00019452,3]
[347278762,1735653058928,-572.33,0.00019452,3]
[347278763,1735653058954,-770.83,0.00019452,3]
[347278764,1735653058979,-500.0,0.00019452,3]
[347278765,1735653059006,-500.0,0.00019452,3]
[347278766,1735653059029,-781.76,0.00019452,3]
[347278767,1735653059054,-500.0,0.00019452,3]
[347278768,1735653059073,-1450.06,0.00019452,3]
[347278769,1735653059082,-1960.236181,0.00019452,2]
[347278770,1735653059091,-1960.236181,0.00019452,2]
[347278771,1735653059102,-500.0,0.00019452,3]
[347278772,1735653059112,-500.0,0.00019452,3]
[347278773,1735653059122,-729.16,0.00019452,3]
[347278774,1735653059132,-631.0059852,0.00019452,3]
[347278775,1735653059142,-1960.236181,0.00019452,2]
[347278776,1735653059151,-1960.236181,0.00019452,2]
[347278777,1735653059161,-500.0,0.00019452,3]
[347278778,1735653059172,-538.34344337,0.00019452,3]
[347278779,1735653059181,-151.0,0.00019452,2]
[347278780,1735653059190,-500.0,0.00019452,3]
[347278781,1735653059199,-484.72776641,0.00019452,3]
[347278782,1735653059209,-505.11169019,0.00019452,3]
[347278783,1735653059218,-500.0,0.00019452,3]
[347278784,1735653059227,-780.66,0.00019452,3]
[347278785,1735653059237,-500.0,0.00019452,3]
[347278786,1735653059246,-500.0,0.00019452,3]
[347278787,1735653059256,-392.462392,0.00019452,2]
[347278788,1735653059265,-392.462392,0.00019452,2]
[347278789,1735653059275,-500.0,0.00019452,3]
[347278790,1735653059288,-500.0,0.00019452,3]
[347278791,1735653059298,-656.49,0.00019452,3]
[347278792,1735653059308,-500.0,0.00019452,3]
[347278793,1735653059317,-392.462392,0.00019452,2]
[347278794,1735653059327,-392.462392,0.00019452,2]
[347278795,1735653059338,-500.0,0.00019452,3]
[347278796,1735653059347,-500.0,0.00019452,3]
[347278797,1735653059357,-401.309642,0.00019452,2]
[347278798,1735653059367,-401.309642,0.00019452,2]
[347278799,1735653059376,-500.0,0.00019452,3]
[347278800,1735653059385,-500.0,0.00019452,3]
[347278801,1735653059395,-500.0,0.00019452,3]
[347278802,1735653059405,-401.309642,0.00019452,2]
[347278803,1735653059414,-500.0,0.00019452,3]
[347278804,1735653059423,-401.309642,0.00019452,2]
[347278805,1735653059433,-500.0,0.00019452,3]
[347278806,1735653059443,-500.0,0.00019452,3]
[347278807,1735653059452,-500.0,0.00019452,3]
[347278808,1735653059462,-500.0,0.00019452,3]
[347278809,1735653059476,-500.0,0.00019452,3]
[347278810,1735653059498,-507.7482609,0.00019452,3]
[347278811,1735653059520,-501.83254059,0.00019452,3]
[347278812,1735653059542,-500.0,0.00019452,3]
[347278813,1735653059566,-500.0,0.00019452,3]
[347278814,1735653059588,-500.0,0.00019452,3]
[347278815,1735653059610,-500.0,0.00019452,3]
[347278816,1735653059633,-500.0,0.00019452,3]
[347278817,1735653059652,-500.0,0.00019452,3]
[347278818,1735653059664,-500.0,0.00019452,3]
[347278819,1735653059673,-500.71935887,0.00019473,2]
[347278820,1735653059683,-500.0,0.00019473,2]
[347278821,1735653059693,-500.37758831,0.00019473,2]
[347278822,1735653059702,-500.88750972,0.00019473,2]
[347278823,1735653059712,-500.0,0.00019473,2]
[347278824,1735653059721,-500.25344724,0.00019473,2]
[347278825,1735653059730,-500.0,0.00019473,2]
[347278826,1735653059740,-192.169156,0.00019473,2]
[347278827,1735653059749,-151.0,0.000195,2]
[347278828,1735653059762,-276.907986,0.000195,2]
[347278829,1735653059771,-151.0,0.000195,2]
[347278830,1735653059781,-587.0,0.0001952,2]
[347278831,1735653059790,-151.0,0.000196,2]
[347278832,1735653059800,-465.05103248,0.00019611,2]
[347278833,1735653059809,-186.57559626,0.00019626,7]
[347278834,1735653059819,-186.57559626,0.00019626,7]
[347278835,1735653059829,-186.57559626,0.00019626,7]
[347278836,1735653059839,-186.57559626,0.00019626,7]
[347278837,1735653059849,-186.57559626,0.00019626,7]
[347278838,1735653059859,-186.57559626,0.00019626,7]
[347278839,1735653059868,-186.57559626,0.00019626,7]
[347278840,1735653059878,-186.57559626,0.00019626,7]
[347278841,1735653059887,-186.57559626,0.00019626,7]
[347278842,1735653059897,-186.57559626,0.00019626,7]
[347278843,1735653059906,-186.57559626,0.00019626,7]
[347278844,1735653059915,-186.57559626,0.00019626,7]
[347278845,1735653059925,-186.57559626,0.00019626,7]
[347278846,1735653059935,-186.57559626,0.00019626,7]
[347278847,1735653059945,-186.57559626,0.00019626,7]
[347278848,1735653060035,-186.57559626,0.00019626,7]
[347278849,1735653060055,-186.57559626,0.00019626,7]
[347278850,1735653060065,-186.57559626,0.00019626,7]
[347278851,1735653060075,-186.57559626,0.00019626,7]
[347278852,1735653060085,-186.57,0.00019626,7]
[347278853,1735653060095,-1484.09775754,0.00019626,7]
[347278854,1735653060105,-1484.09775754,0.00019626,7]
[347278855,1735653060114,-1484.09775754,0.00019626,7]
[347278856,1735653060124,-1484.09775754,0.00019626,7]
[347278857,1735653060134,-1484.09775754,0.00019626,7]
[347278858,1735653060143,-1484.09775754,0.00019626,7]
[347278859,1735653060153,-1484.09775754,0.00019626,7]
[347278860,1735653060163,-1484.09775754,0.00019626,7]
[347278861,1735653060172,-1484.09775754,0.00019626,7]
[347278862,1735653060182,-1484.09775754,0.00019626,7]
[347278863,1735653060192,-1484.09775754,0.00019626,7]
[347278864,1735653060201,-1484.09775754,0.00019626,7]
[347278865,1735653060211,-1484.09775754,0.00019626,7]
[347278866,1735653060220,-1484.09775754,0.00019626,7]
[347278867,1735653060230,-1484.09775754,0.00019626,7]
[347278868,1735653060239,-1484.09775754,0.00019626,7]
[347278869,1735653060249,-1484.09775754,0.00019626,7]
[347278870,1735653060258,-1484.09775754,0.00019626,7]
[347278871,1735653060268,-1484.09775754,0.00019626,7]
[347278872,1735653060278,-1484.09,0.00019626,7]
[347278873,1735653060288,-173.72353213,0.00019626,7]
[347278874,1735653060298,-173.72353213,0.00019626,7]
[347278875,1735653060307,-173.72,0.00019626,7]
[347278876,1735653060317,-267.95883388,0.00019721,2]
[347278877,1735653060329,-500.0,0.00019721,2]
[347278878,1735653060338,-1000.0,0.00019721,2]
[347278879,1735653060348,-1000.0,0.00019721,2]
[347278880,1735653060358,-5348.4,0.00019724,3]
[347278881,1735653060368,-500.0,0.00019725,3]
[347278882,1735653060379,-500.0,0.00019725,3]
[347278883,1735653060389,-22252.94987437,0.00019726,2]
[347278884,1735653060399,-163724.87005589,0.00019726,2]
[347278909,1735653146184,-158.77,0.00022,31]
[347278910,1735653146213,-158.77,0.00022,31]
[347278911,1735653146242,-158.77,0.00022,31]
[347278912,1735653146270,-158.77,0.00022,31]
[347278913,1735653146298,-158.77,0.00022,31]
[347278914,1735653146326,-158.77,0.00022,31]
[347278915,1735653146352,-681.97,0.0002217,30]
[347278916,1735653146387,-4515.65,0.000222,14]
[347278917,1735653146425,-500.0,0.00022441,14]
[347278918,1735653146455,-4249.82,0.000227,14]
[347278919,1735653146479,-11540.95,0.000227,14]
[347278920,1735653146514,-500.0,0.00023263,16]
[347278921,1735653146550,-10109.14484248,0.00024,14]
[347278922,1735653146575,-4515.65,0.00024,14]
[347278923,1735653146600,-897.60410929,0.00024,60]
[347278924,1735653146627,-500.0,0.00024085,18]
[347278925,1735653146663,-200.0,0.00024658,15]
[347278926,1735653146690,-4249.82,0.000247,14]
[347278927,1735653146714,-11540.95,0.000247,14]
[347278928,1735653146738,-960.0,0.000249,15]
[347278929,1735653146762,-25000.0,0.000249,14]
[347278930,1735653146787,-500.0,0.00024907,20]
[347278931,1735653146818,-12896.60296287,0.00025,14]
[347278932,1735653146842,-50000.0,0.00025,15]
[347278933,1735653146866,-1000.0,0.00025,20]
[347278934,1735653146891,-470.0,0.00025,30]
[347278935,1735653146917,-440.72222763,0.00025,30]
[347278936,1735653146942,-10000.0,0.00025,30]
[347278937,1735653146966,-3670.49702509,0.00025,30]
[347278938,1735653146996,-215.15679494,0.00025359,20]
[347278939,1735653147020,-500.0,0.00025397,30]
[347278940,1735653147044,-500.0,0.00025397,30]
[347278941,1735653147069,-500.0,0.00025397,30]
[347278942,1735653147094,-500.0,0.00025397,30]
[347278943,1735653147118,-500.0,0.00025397,30]
[347278944,1735653147143,-500.0,0.00025397,30]
[347278945,1735653147168,-500.0,0.00025397,30]
[347278946,1735653147193,-500.0,0.00025397,30]
[347278947,1735653147322,-500.0,0.00025397,30]
[347278948,1735653147347,-941.17300923,0.00025397,30]
[347278949,1735653147373,-500.0,0.00025397,30]
[347278950,1735653147398,-500.0,0.00025397,30]
[347278951,1735653147427,-142272.42976191,0.00025484,15]
[347278952,1735653147451,-500.0,0.00025729,22]
[347278953,1735653147477,-160.0,0.00025867,120]
[347278954,1735653147502,-160.0,0.00025929,120]
[347278955,1735653147527,-4515.65,0.00026,14]
[347278956,1735653147551,-1000.5,0.00026,31]
[347278957,1735653147575,-500.5,0.00026,31]
[347278958,1735653147600,-196.6,0.00026,31]
[347278959,1735653147626,-199.999999,0.00026,120]
[347278960,1735653147652,-1000.0,0.00026,120]
[347278961,1735653147677,-455.82266737,0.000261,60]
[347278962,1735653147703,-375.1,0.0002655,24]
[347278963,1735653147728,-4249.82,0.000266,14]
[347278964,1735653147753,-11540.95,0.000266,14]
[347278965,1735653147778,-1114.71739418,0.0002661,30]
[347278966,1735653147807,-10000.0,0.000269,14]
[347278967,1735653147833,-361.19115,0.00027,120]
[347278968,1735653147858,-1000.0,0.00027,120]
[347278969,1735653147887,-400.0,0.00027397,60]
[347278970,1735653147913,-1794.83042,0.00027397,120]
[347278971,1735653147950,500.0,0.00025397,30]
[347278972,1735653148005,500.0,0.00025397,30]
[347278973,1735653148092,500.0,0.00025397,30]
[347278974,1735653148136,510.14373761,0.00025397,30]
[347278975,1735653148240,700.0,0.00025397,30]
[347278976,1735653148486,700.0,0.00025397,30]
[347278977,1735653148837,700.0,0.00025397,30]
[347278978,1735653149190,700.0,0.00025397,30]
[347278979,1735653149570,700.0,0.00025397,30]
[347278980,1735653149914,700.0,0.00025397,30]
[347278981,1735653150248,700.0,0.00025397,30]
[347278982,1735653150623,700.0,0.00025397,30]